[Event "Titled Tuesday Blitz August 24 2021"]
[White "Bortnyk, Olexandr"]
[Black "Timmermans, Mark"]
[WhiteFideId "14120828"]
[BlackFideId "1026399"]
[WhiteElo "2723"]
[BlackElo "2460"]
[Result "0-1"]
[Round "07"]
[TimeControl "180+1"]
[Date "2021.08.24"]
[WhiteClock "0:00:02"]
[BlackClock "0:00:48"]

1. d4 {[%clk 0:03:00]}  Nf6 {[%clk 0:02:58]} 2. Nc3 {[%clk 0:03:00]}  c5 {[%clk 0:02:55]} 3. Nf3 {[%clk 0:02:58]}  cxd4 {[%clk 0:02:55]} 4. Nxd4 {[%clk 0:02:59]}  Nc6 {[%clk 0:02:55]} 5. e4 {[%clk 0:02:59]}  d6 {[%clk 0:02:35]} 6. Bg5 {[%clk 0:02:48]}  e6 {[%clk 0:02:30]} 7. Qd2 {[%clk 0:02:18]}  Be7 {[%clk 0:02:29]} 8. O-O-O {[%clk 0:02:07]}  O-O {[%clk 0:02:29]} 9. f4 {[%clk 0:01:57]}  Nxd4 {[%clk 0:02:20]} 10. Qxd4 {[%clk 0:01:55]}  Qa5 {[%clk 0:02:21]} 11. Kb1 {[%clk 0:01:37]}  h6 {[%clk 0:02:11]} 12. Bh4 {[%clk 0:01:33]}  b5 {[%clk 0:02:00]} 13. e5 {[%clk 0:00:49]}  dxe5 {[%clk 0:02:01]} 14. fxe5 {[%clk 0:00:18]}  Rd8 {[%clk 0:02:00]} 15. Qf2 {[%clk 0:00:13]}  Ne4 {[%clk 0:01:23]} 16. Rxd8+ {[%clk 0:00:06]}  Qxd8 {[%clk 0:01:24]} 17. Bxe7 {[%clk 0:00:06]}  Nxc3+ {[%clk 0:01:24]} 18. bxc3 {[%clk 0:00:06]}  Qxe7 {[%clk 0:01:25]} 19. Bd3 {[%clk 0:00:03]}  a6 {[%clk 0:01:24]} 20. Be4 {[%clk 0:00:02]}  Bb7 {[%clk 0:01:24]} 21. Qf3 {[%clk 0:00:01]}  Bxe4 {[%clk 0:01:22]} 22. Qxe4 {[%clk 0:00:02]}  Rc8 {[%clk 0:01:22]} 23. Rd1 {[%clk 0:00:02]}  Rxc3 {[%clk 0:01:04]} 24. Rd6 {[%clk 0:00:03]}  Rc4 {[%clk 0:00:53]} 25. Qa8+ {[%clk 0:00:03]}  Kh7 {[%clk 0:00:54]} 26. Qxa6 {[%clk 0:00:03]}  Qh4 {[%clk 0:00:49]} 27. a3 {[%clk 0:00:02]}  Qe1+ {[%clk 0:00:48]} 0-1


[Site "https://www.chess.com"]

[Event "Titled Tuesday Blitz August 24 2021"]
[White "Castellanos Rodriguez, Renier"]
[Black "Delorme, Alban"]
[WhiteFideId "3404650"]
[BlackFideId "623636"]
[WhiteElo "2612"]
[BlackElo "2197"]
[Result "0-1"]
[Round "07"]
[TimeControl "180+1"]
[Date "2021.08.24"]
[WhiteClock "0:01:29"]
[BlackClock "0:00:23"]

1. c4 {[%clk 0:03:00]}  c5 {[%clk 0:02:58]} 2. Nf3 {[%clk 0:03:00]}  Nf6 {[%clk 0:02:57]} 3. Nc3 {[%clk 0:03:01]}  Nc6 {[%clk 0:02:57]} 4. e3 {[%clk 0:03:02]}  e6 {[%clk 0:02:52]} 5. d4 {[%clk 0:03:02]}  cxd4 {[%clk 0:02:53]} 6. exd4 {[%clk 0:03:03]}  d5 {[%clk 0:02:53]} 7. cxd5 {[%clk 0:03:03]}  exd5 {[%clk 0:02:53]} 8. Bb5 {[%clk 0:03:02]}  Bd6 {[%clk 0:02:36]} 9. O-O {[%clk 0:03:01]}  O-O {[%clk 0:02:35]} 10. h3 {[%clk 0:02:59]}  h6 {[%clk 0:02:35]} 11. Re1 {[%clk 0:02:59]}  a6 {[%clk 0:02:32]} 12. Bxc6 {[%clk 0:02:59]}  bxc6 {[%clk 0:02:33]} 13. Ne5 {[%clk 0:02:59]}  Qc7 {[%clk 0:02:27]} 14. Bf4 {[%clk 0:02:58]}  Re8 {[%clk 0:02:23]} 15. Rc1 {[%clk 0:02:56]}  Nd7 {[%clk 0:01:44]} 16. Nxd5 {[%clk 0:02:54]}  Qb7 {[%clk 0:01:11]} 17. Nxc6 {[%clk 0:02:50]}  Rxe1+ {[%clk 0:01:09]} 18. Qxe1 {[%clk 0:02:51]}  Bxf4 {[%clk 0:01:07]} 19. Nxf4 {[%clk 0:02:32]}  Nf8 {[%clk 0:01:04]} 20. b3 {[%clk 0:02:22]}  Ne6 {[%clk 0:00:58]} 21. Nxe6 {[%clk 0:02:21]}  Bxe6 {[%clk 0:00:59]} 22. d5 {[%clk 0:02:21]}  Bxd5 {[%clk 0:00:51]} 23. Ne7+ {[%clk 0:02:22]}  Kh8 {[%clk 0:00:50]} 24. Nxd5 {[%clk 0:01:59]}  Qxd5 {[%clk 0:00:50]} 25. Rd1 {[%clk 0:01:59]}  Qf5 {[%clk 0:00:46]} 26. Qe2 {[%clk 0:01:56]}  a5 {[%clk 0:00:45]} 27. Rd4 {[%clk 0:01:56]}  Rc8 {[%clk 0:00:43]} 28. Rc4 {[%clk 0:01:56]}  Rd8 {[%clk 0:00:36]} 29. Kh2 {[%clk 0:01:48]}  Kh7 {[%clk 0:00:28]} 30. g3 {[%clk 0:01:48]}  g6 {[%clk 0:00:28]} 31. Kg2 {[%clk 0:01:48]}  Rd6 {[%clk 0:00:28]} 32. Rf4 {[%clk 0:01:47]}  Qd7 {[%clk 0:00:27]} 33. Qf3 {[%clk 0:01:45]}  Kg7 {[%clk 0:00:27]} 34. Qc3+ {[%clk 0:01:44]}  Kh7 {[%clk 0:00:28]} 35. Qxa5 {[%clk 0:01:41]}  Qb7+ {[%clk 0:00:26]} 36. Rf3 {[%clk 0:01:29]}  Rd3 {[%clk 0:00:23]} 0-1


[Site "https://www.chess.com"]

[Event "Titled Tuesday Blitz August 24 2021"]
[White "Costachi, Mihnea"]
[Black "Svane, Rasmus"]
[WhiteFideId "1217518"]
[BlackFideId "4657101"]
[WhiteElo "2482"]
[BlackElo "2669"]
[Result "0-1"]
[Round "07"]
[TimeControl "180+1"]
[Date "2021.08.24"]
[WhiteClock "0:00:15"]
[BlackClock "0:00:08"]

1. d4 {[%clk 0:03:00]}  d5 {[%clk 0:02:59]} 2. c4 {[%clk 0:03:01]}  e6 {[%clk 0:02:59]} 3. Nc3 {[%clk 0:03:00]}  a6 {[%clk 0:03:00]} 4. cxd5 {[%clk 0:02:58]}  exd5 {[%clk 0:03:01]} 5. Qc2 {[%clk 0:02:57]}  c6 {[%clk 0:02:56]} 6. Nf3 {[%clk 0:02:57]}  Bd6 {[%clk 0:02:56]} 7. Bg5 {[%clk 0:02:58]}  Ne7 {[%clk 0:02:55]} 8. e3 {[%clk 0:02:57]}  f6 {[%clk 0:02:44]} 9. Bh4 {[%clk 0:02:57]}  Bf5 {[%clk 0:02:42]} 10. Bd3 {[%clk 0:02:57]}  Bxd3 {[%clk 0:02:42]} 11. Qxd3 {[%clk 0:02:58]}  O-O {[%clk 0:02:37]} 12. O-O {[%clk 0:02:59]}  Ng6 {[%clk 0:02:13]} 13. Bg3 {[%clk 0:02:58]}  Bxg3 {[%clk 0:02:10]} 14. hxg3 {[%clk 0:02:59]}  Nd7 {[%clk 0:02:05]} 15. b4 {[%clk 0:02:59]}  Nb6 {[%clk 0:02:04]} 16. Nd2 {[%clk 0:02:58]}  Qd6 {[%clk 0:02:00]} 17. Rfb1 {[%clk 0:02:57]}  Ne7 {[%clk 0:01:55]} 18. a4 {[%clk 0:02:57]}  Rfc8 {[%clk 0:01:54]} 19. b5 {[%clk 0:02:54]}  cxb5 {[%clk 0:01:53]} 20. axb5 {[%clk 0:02:55]}  a5 {[%clk 0:01:54]} 21. Na4 {[%clk 0:02:53]}  Nxa4 {[%clk 0:01:53]} 22. Rxa4 {[%clk 0:02:52]}  b6 {[%clk 0:01:52]} 23. e4 {[%clk 0:02:52]}  dxe4 {[%clk 0:01:47]} 24. Nxe4 {[%clk 0:02:43]}  Qd7 {[%clk 0:01:43]} 25. Nc3 {[%clk 0:02:38]}  Nd5 {[%clk 0:01:43]} 26. Nxd5 {[%clk 0:02:32]}  Qxd5 {[%clk 0:01:44]} 27. Re1 {[%clk 0:02:30]}  Rc7 {[%clk 0:01:36]} 28. Raa1 {[%clk 0:02:20]}  Rd8 {[%clk 0:01:34]} 29. Re4 {[%clk 0:02:19]}  Rcd7 {[%clk 0:01:01]} 30. Rae1 {[%clk 0:02:18]}  Qf7 {[%clk 0:00:59]} 31. Qc3 {[%clk 0:01:56]}  h6 {[%clk 0:00:57]} 32. Qc6 {[%clk 0:01:54]}  Rb8 {[%clk 0:00:35]} 33. R1e3 {[%clk 0:01:30]}  Kh7 {[%clk 0:00:33]} 34. Rc3 {[%clk 0:01:23]}  a4 {[%clk 0:00:29]} 35. Ra3 {[%clk 0:01:15]}  Rc7 {[%clk 0:00:30]} 36. Qd6 {[%clk 0:01:14]}  Rc1+ {[%clk 0:00:29]} 37. Kh2 {[%clk 0:01:14]}  Qh5+ {[%clk 0:00:28]} 38. Rh4 {[%clk 0:01:15]}  Qd1 {[%clk 0:00:29]} 39. g4 {[%clk 0:01:11]}  Rbc8 {[%clk 0:00:26]} 40. Qf4 {[%clk 0:00:41]}  Qg1+ {[%clk 0:00:17]} 41. Kg3 {[%clk 0:00:40]}  R8c3+ {[%clk 0:00:17]} 42. Rxc3 {[%clk 0:00:40]}  Rxc3+ {[%clk 0:00:18]} 43. f3 {[%clk 0:00:41]}  Qb1 {[%clk 0:00:17]} 44. d5 {[%clk 0:00:25]}  a3 {[%clk 0:00:08]} 45. Qf5+ {[%clk 0:00:25]}  Qxf5 {[%clk 0:00:08]} 46. gxf5 {[%clk 0:00:26]}  Rd3 {[%clk 0:00:08]} 47. Ra4 {[%clk 0:00:25]}  Rxd5 {[%clk 0:00:09]} 48. Rxa3 {[%clk 0:00:20]}  Rxf5 {[%clk 0:00:09]} 49. Rb3 {[%clk 0:00:21]}  Kg6 {[%clk 0:00:07]} 50. f4 {[%clk 0:00:21]}  Rc5 {[%clk 0:00:08]} 51. Kg4 {[%clk 0:00:20]}  h5+ {[%clk 0:00:08]} 52. Kh4 {[%clk 0:00:20]}  Rc4 {[%clk 0:00:08]} 53. g3 {[%clk 0:00:20]}  Kh6 {[%clk 0:00:08]} 54. Kh3 {[%clk 0:00:17]}  g5 {[%clk 0:00:06]} 55. fxg5+ {[%clk 0:00:18]}  fxg5 {[%clk 0:00:07]} 56. Rd3 {[%clk 0:00:17]}  Rb4 {[%clk 0:00:02]} 57. Rd6+ {[%clk 0:00:17]}  Kg7 {[%clk 0:00:03]} 58. Rxb6 {[%clk 0:00:17]}  Rb2 {[%clk 0:00:03]} 59. g4 {[%clk 0:00:18]}  Rb3+ {[%clk 0:00:03]} 60. Kg2 {[%clk 0:00:19]}  h4 {[%clk 0:00:04]} 61. Kh2 {[%clk 0:00:18]}  Rb2+ {[%clk 0:00:04]} 62. Kh3 {[%clk 0:00:17]}  Rb3+ {[%clk 0:00:05]} 63. Kh2 {[%clk 0:00:18]}  Rb4 {[%clk 0:00:06]} 64. Kh3 {[%clk 0:00:18]}  Kf7 {[%clk 0:00:06]} 65. Rb7+ {[%clk 0:00:17]}  Kf6 {[%clk 0:00:07]} 66. Rb6+ {[%clk 0:00:17]}  Ke5 {[%clk 0:00:07]} 67. Rg6 {[%clk 0:00:17]}  Rb3+ {[%clk 0:00:07]} 68. Kh2 {[%clk 0:00:17]}  Kf4 {[%clk 0:00:08]} 69. b6 {[%clk 0:00:15]}  Kxg4 {[%clk 0:00:08]} 70. Rc6 {[%clk 0:00:16]}  Rb2+ {[%clk 0:00:09]} 71. Kg1 {[%clk 0:00:16]}  h3 {[%clk 0:00:09]} 72. Rc4+ {[%clk 0:00:16]}  Kg3 {[%clk 0:00:09]} 73. Rc3+ {[%clk 0:00:17]}  Kh4 {[%clk 0:00:10]} 74. Rc6 {[%clk 0:00:15]}  g4 {[%clk 0:00:09]} 75. Kf1 {[%clk 0:00:13]}  Rb1+ {[%clk 0:00:07]} 76. Kf2 {[%clk 0:00:13]}  g3+ {[%clk 0:00:07]} 77. Kf3 {[%clk 0:00:13]}  g2 {[%clk 0:00:07]} 78. Rh6+ {[%clk 0:00:13]}  Kg5 {[%clk 0:00:07]} 79. Rxh3 {[%clk 0:00:13]}  g1=Q {[%clk 0:00:07]} 80. Rg3+ {[%clk 0:00:14]}  Qxg3+ {[%clk 0:00:07]} 81. Kxg3 {[%clk 0:00:15]}  Rxb6 {[%clk 0:00:08]} 0-1


[Site "https://www.chess.com"]

[Event "Titled Tuesday Blitz August 24 2021"]
[White "Cunha, Lucas Aguiar"]
[Black "Leitao, Rafael"]
[WhiteFideId "2125404"]
[BlackFideId "2101246"]
[WhiteElo "2361"]
[BlackElo "2609"]
[Result "1-0"]
[Round "07"]
[TimeControl "180+1"]
[Date "2021.08.24"]
[WhiteClock "0:00:09"]
[BlackClock "0:00:03"]

1. e4 {[%clk 0:03:00]}  e5 {[%clk 0:02:59]} 2. Nf3 {[%clk 0:03:00]}  Nc6 {[%clk 0:02:59]} 3. Nc3 {[%clk 0:03:00]}  Nf6 {[%clk 0:02:58]} 4. Bb5 {[%clk 0:03:01]}  Bd6 {[%clk 0:02:57]} 5. d3 {[%clk 0:03:01]}  h6 {[%clk 0:02:55]} 6. a3 {[%clk 0:03:01]}  O-O {[%clk 0:02:54]} 7. g4 {[%clk 0:03:01]}  Be7 {[%clk 0:02:28]} 8. g5 {[%clk 0:03:01]}  hxg5 {[%clk 0:02:28]} 9. Bxg5 {[%clk 0:03:01]}  Nh7 {[%clk 0:02:19]} 10. Be3 {[%clk 0:02:59]}  f5 {[%clk 0:02:07]} 11. Bc4+ {[%clk 0:02:51]}  Kh8 {[%clk 0:02:07]} 12. exf5 {[%clk 0:02:51]}  Rxf5 {[%clk 0:02:05]} 13. Rg1 {[%clk 0:02:25]}  b5 {[%clk 0:01:49]} 14. Bd5 {[%clk 0:02:23]}  Bb7 {[%clk 0:01:44]} 15. Be4 {[%clk 0:02:20]}  Qf8 {[%clk 0:01:34]} 16. Nd5 {[%clk 0:02:06]}  Bd8 {[%clk 0:01:34]} 17. Nxc7 {[%clk 0:01:45]}  Bxc7 {[%clk 0:01:28]} 18. Nh4 {[%clk 0:01:45]}  Qf6 {[%clk 0:00:41]} 19. Nxf5 {[%clk 0:01:40]}  Rg8 {[%clk 0:00:31]} 20. Qh5 {[%clk 0:01:18]}  g6 {[%clk 0:00:28]} 21. Nh6 {[%clk 0:01:09]}  Ne7 {[%clk 0:00:21]} 22. Nxg8 {[%clk 0:01:03]}  Nxg8 {[%clk 0:00:20]} 23. Qxg6 {[%clk 0:01:00]}  Qxg6 {[%clk 0:00:20]} 24. Rxg6 {[%clk 0:01:01]}  d5 {[%clk 0:00:20]} 25. Bg2 {[%clk 0:00:56]}  Ngf6 {[%clk 0:00:20]} 26. Bg5 {[%clk 0:00:49]}  Bd8 {[%clk 0:00:21]} 27. O-O-O {[%clk 0:00:46]}  Bc8 {[%clk 0:00:21]} 28. Bh6 {[%clk 0:00:36]}  Bf5 {[%clk 0:00:20]} 29. Bg7+ {[%clk 0:00:34]}  Kg8 {[%clk 0:00:21]} 30. Rg3 {[%clk 0:00:34]}  Kf7 {[%clk 0:00:19]} 31. Re1 {[%clk 0:00:32]}  e4 {[%clk 0:00:17]} 32. Bh6 {[%clk 0:00:27]}  Ng4 {[%clk 0:00:16]} 33. Rxg4 {[%clk 0:00:25]}  Bxg4 {[%clk 0:00:16]} 34. dxe4 {[%clk 0:00:25]}  d4 {[%clk 0:00:16]} 35. f4 {[%clk 0:00:24]}  Kg6 {[%clk 0:00:15]} 36. Bg5 {[%clk 0:00:24]}  Nxg5 {[%clk 0:00:15]} 37. fxg5 {[%clk 0:00:23]}  Bxg5+ {[%clk 0:00:16]} 38. Kb1 {[%clk 0:00:24]}  Kf6 {[%clk 0:00:15]} 39. e5+ {[%clk 0:00:24]}  Ke6 {[%clk 0:00:16]} 40. Bb7 {[%clk 0:00:22]}  Bh5 {[%clk 0:00:13]} 41. Bc8+ {[%clk 0:00:21]}  Ke7 {[%clk 0:00:14]} 42. e6 {[%clk 0:00:21]}  Be3 {[%clk 0:00:14]} 43. Rf1 {[%clk 0:00:18]}  Kd6 {[%clk 0:00:09]} 44. Bd7 {[%clk 0:00:12]}  a6 {[%clk 0:00:09]} 45. Rf8 {[%clk 0:00:10]}  Ke7 {[%clk 0:00:07]} 46. Ra8 {[%clk 0:00:11]}  Bg6 {[%clk 0:00:07]} 47. Rxa6 {[%clk 0:00:10]}  d3 {[%clk 0:00:07]} 48. cxd3 {[%clk 0:00:10]}  Bxd3+ {[%clk 0:00:08]} 49. Ka1 {[%clk 0:00:10]}  b4 {[%clk 0:00:08]} 50. Ra5 {[%clk 0:00:10]}  b3 {[%clk 0:00:08]} 51. Ra8 {[%clk 0:00:09]}  Bc2 {[%clk 0:00:05]} 52. Rc8 {[%clk 0:00:09]}  Bd4 {[%clk 0:00:03]} 53. a4 {[%clk 0:00:09]}  Kf6 {[%clk 0:00:03]} 54. a5 {[%clk 0:00:09]}  Bd3 {[%clk 0:00:03]} 55. Rf8+ {[%clk 0:00:08]}  Ke7 {[%clk 0:00:04]} 56. Rf3 {[%clk 0:00:09]}  Be4 {[%clk 0:00:03]} 57. Rf4 {[%clk 0:00:09]} 1-0


[Site "https://www.chess.com"]

[Event "Titled Tuesday Blitz August 24 2021"]
[White "Demchenko, Anton"]
[Black "Anuj Shrivatri"]
[WhiteFideId "4160258"]
[BlackFideId "35070924"]
[WhiteElo "2583"]
[BlackElo "2038"]
[Result "1-0"]
[Round "07"]
[TimeControl "180+1"]
[Date "2021.08.24"]
[WhiteClock "0:00:21"]
[BlackClock "0:00:04"]

1. e4 {[%clk 0:02:53]}  d6 {[%clk 0:03:00]} 2. d4 {[%clk 0:02:53]}  Nf6 {[%clk 0:03:00]} 3. Nc3 {[%clk 0:02:52]}  g6 {[%clk 0:03:00]} 4. Nf3 {[%clk 0:02:48]}  Bg7 {[%clk 0:02:58]} 5. Be3 {[%clk 0:02:48]}  a6 {[%clk 0:02:57]} 6. Qd2 {[%clk 0:02:48]}  O-O {[%clk 0:02:57]} 7. Bh6 {[%clk 0:02:44]}  Nc6 {[%clk 0:02:52]} 8. h4 {[%clk 0:02:43]}  Bxh6 {[%clk 0:02:51]} 9. Qxh6 {[%clk 0:02:43]}  Ng4 {[%clk 0:02:52]} 10. Qd2 {[%clk 0:02:41]}  h5 {[%clk 0:02:50]} 11. d5 {[%clk 0:02:36]}  Nce5 {[%clk 0:02:46]} 12. Be2 {[%clk 0:02:33]}  c5 {[%clk 0:02:40]} 13. Ng5 {[%clk 0:02:24]}  b5 {[%clk 0:02:34]} 14. f3 {[%clk 0:02:24]}  b4 {[%clk 0:02:35]} 15. Nd1 {[%clk 0:02:22]}  Nf6 {[%clk 0:02:35]} 16. Ne3 {[%clk 0:02:21]}  a5 {[%clk 0:02:17]} 17. O-O-O {[%clk 0:02:11]}  a4 {[%clk 0:02:09]} 18. Kb1 {[%clk 0:02:07]}  Ba6 {[%clk 0:02:02]} 19. f4 {[%clk 0:02:07]}  Bxe2 {[%clk 0:01:51]} 20. Qxe2 {[%clk 0:02:04]}  Neg4 {[%clk 0:01:49]} 21. Nc4 {[%clk 0:02:00]}  Nh7 {[%clk 0:01:15]} 22. e5 {[%clk 0:01:54]}  Kg7 {[%clk 0:01:06]} 23. Ne4 {[%clk 0:01:49]}  Qd7 {[%clk 0:00:56]} 24. Rhf1 {[%clk 0:01:46]}  b3 {[%clk 0:00:51]} 25. Nb6 {[%clk 0:01:32]}  bxa2+ {[%clk 0:00:46]} 26. Ka1 {[%clk 0:01:32]}  Qb7 {[%clk 0:00:43]} 27. Nxa8 {[%clk 0:01:32]}  Rxa8 {[%clk 0:00:42]} 28. exd6 {[%clk 0:01:11]}  exd6 {[%clk 0:00:42]} 29. Nxd6 {[%clk 0:01:09]}  Qb4 {[%clk 0:00:42]} 30. c3 {[%clk 0:01:01]}  Qb3 {[%clk 0:00:42]} 31. f5 {[%clk 0:00:52]}  a3 {[%clk 0:00:28]} 32. fxg6 {[%clk 0:00:44]}  fxg6 {[%clk 0:00:27]} 33. Qe7+ {[%clk 0:00:39]}  Kg8 {[%clk 0:00:24]} 34. Qe6+ {[%clk 0:00:36]}  Kh8 {[%clk 0:00:23]} 35. Rd2 {[%clk 0:00:35]}  Nf8 {[%clk 0:00:15]} 36. Nf7+ {[%clk 0:00:25]}  Kg7 {[%clk 0:00:15]} 37. Qe7 {[%clk 0:00:25]}  Kg8 {[%clk 0:00:06]} 38. Nd8 {[%clk 0:00:23]}  axb2+ {[%clk 0:00:05]} 39. Rxb2 {[%clk 0:00:23]}  Qxd5 {[%clk 0:00:04]} 40. Rxf8# {[%clk 0:00:21]} 1-0


[Site "https://www.chess.com"]

[Event "Titled Tuesday Blitz August 24 2021"]
[White "Djordjevic, Vuk"]
[Black "Isajevsky, Anton"]
[WhiteFideId "902098"]
[BlackFideId "4142500"]
[WhiteElo "2463"]
[BlackElo "2510"]
[Result "1-0"]
[Round "07"]
[TimeControl "180+1"]
[Date "2021.08.24"]
[WhiteClock "0:00:16"]
[BlackClock "0:00:01"]

1. d4 {[%clk 0:03:00]}  d5 {[%clk 0:02:59]} 2. Bf4 {[%clk 0:02:59]}  c5 {[%clk 0:02:57]} 3. e3 {[%clk 0:02:59]}  Nc6 {[%clk 0:02:57]} 4. c3 {[%clk 0:02:59]}  Nf6 {[%clk 0:02:56]} 5. Nd2 {[%clk 0:02:59]}  Bf5 {[%clk 0:02:55]} 6. Ngf3 {[%clk 0:02:57]}  e6 {[%clk 0:02:55]} 7. Bb5 {[%clk 0:02:55]}  Nd7 {[%clk 0:02:41]} 8. O-O {[%clk 0:02:49]}  a6 {[%clk 0:02:34]} 9. Bxc6 {[%clk 0:02:32]}  bxc6 {[%clk 0:02:35]} 10. dxc5 {[%clk 0:02:33]}  Bd3 {[%clk 0:02:08]} 11. Re1 {[%clk 0:02:25]}  Bxc5 {[%clk 0:02:08]} 12. Nb3 {[%clk 0:02:20]}  Be4 {[%clk 0:01:40]} 13. Nxc5 {[%clk 0:02:16]}  Nxc5 {[%clk 0:01:36]} 14. Qd4 {[%clk 0:02:15]}  Qe7 {[%clk 0:01:33]} 15. Qxg7 {[%clk 0:02:10]}  O-O-O {[%clk 0:01:20]} 16. Bg5 {[%clk 0:02:01]}  Qf8 {[%clk 0:01:17]} 17. Qxf8 {[%clk 0:01:05]}  Rdxf8 {[%clk 0:01:17]} 18. Be7 {[%clk 0:01:05]}  Rfg8 {[%clk 0:01:10]} 19. Nh4 {[%clk 0:01:04]}  Nd7 {[%clk 0:00:29]} 20. f3 {[%clk 0:01:01]}  Bg6 {[%clk 0:00:20]} 21. Rac1 {[%clk 0:00:53]}  Kb7 {[%clk 0:00:17]} 22. c4 {[%clk 0:00:53]}  Bd3 {[%clk 0:00:17]} 23. cxd5 {[%clk 0:00:52]}  cxd5 {[%clk 0:00:17]} 24. Red1 {[%clk 0:00:51]}  Bb5 {[%clk 0:00:16]} 25. e4 {[%clk 0:00:48]}  dxe4 {[%clk 0:00:15]} 26. fxe4 {[%clk 0:00:40]}  Rc8 {[%clk 0:00:13]} 27. Kf2 {[%clk 0:00:34]}  Nb6 {[%clk 0:00:08]} 28. b3 {[%clk 0:00:33]}  Nd7 {[%clk 0:00:07]} 29. Nf3 {[%clk 0:00:31]}  Rxc1 {[%clk 0:00:03]} 30. Rxc1 {[%clk 0:00:31]}  Re8 {[%clk 0:00:02]} 31. Bd6 {[%clk 0:00:28]}  Bc6 {[%clk 0:00:02]} 32. Ke3 {[%clk 0:00:27]}  f5 {[%clk 0:00:02]} 33. e5 {[%clk 0:00:26]}  Nb6 {[%clk 0:00:01]} 34. Kf2 {[%clk 0:00:26]}  Nd5 {[%clk 0:00:02]} 35. Nd4 {[%clk 0:00:26]}  Bd7 {[%clk 0:00:02]} 36. b4 {[%clk 0:00:27]}  Rc8 {[%clk 0:00:02]} 37. Rxc8 {[%clk 0:00:26]}  Kxc8 {[%clk 0:00:03]} 38. Nb3 {[%clk 0:00:27]}  Kd8 {[%clk 0:00:01]} 39. a3 {[%clk 0:00:24]}  Bc8 {[%clk 0:00:02]} 40. Nc5 {[%clk 0:00:21]}  Ke8 {[%clk 0:00:02]} 41. Nd3 {[%clk 0:00:19]}  Kf7 {[%clk 0:00:02]} 42. Ne1 {[%clk 0:00:18]}  Ke8 {[%clk 0:00:01]} 43. Nf3 {[%clk 0:00:19]}  Kd7 {[%clk 0:00:01]} 44. Ng5 {[%clk 0:00:18]}  h6 {[%clk 0:00:01]} 45. Nf7 {[%clk 0:00:19]}  h5 {[%clk 0:00:01]} 46. Kg3 {[%clk 0:00:19]}  Kc6 {[%clk 0:00:01]} 47. Kh4 {[%clk 0:00:18]}  Nc3 {[%clk 0:00:01]} 48. Kxh5 {[%clk 0:00:17]}  Kd5 {[%clk 0:00:01]} 49. Kg6 {[%clk 0:00:16]}  Nb5 {[%clk 0:00:02]} 50. h4 {[%clk 0:00:16]}  Nxa3 {[%clk 0:00:01]} 51. h5 {[%clk 0:00:16]} 1-0


[Site "https://www.chess.com"]

[Event "Titled Tuesday Blitz August 24 2021"]
[White "FGHSMN"]
[Black "Bok, Benjamin"]
[BlackFideId "1017063"]
[WhiteElo "2709"]
[BlackElo "2658"]
[Result "0-1"]
[Round "07"]
[TimeControl "180+1"]
[Date "2021.08.24"]
[WhiteClock "0:00:02"]
[BlackClock "0:00:18"]

1. e4 {[%clk 0:03:00]}  c5 {[%clk 0:02:59]} 2. Nf3 {[%clk 0:03:00]}  d6 {[%clk 0:02:57]} 3. d4 {[%clk 0:03:00]}  cxd4 {[%clk 0:02:55]} 4. Nxd4 {[%clk 0:03:01]}  Nf6 {[%clk 0:02:55]} 5. Nc3 {[%clk 0:03:01]}  a6 {[%clk 0:02:56]} 6. a3 {[%clk 0:03:00]}  Nc6 {[%clk 0:02:52]} 7. f3 {[%clk 0:02:59]}  e6 {[%clk 0:02:22]} 8. Be3 {[%clk 0:02:57]}  Be7 {[%clk 0:02:20]} 9. Qd2 {[%clk 0:02:54]}  Qc7 {[%clk 0:02:18]} 10. g4 {[%clk 0:02:52]}  b5 {[%clk 0:02:14]} 11. g5 {[%clk 0:02:48]}  Nd7 {[%clk 0:02:14]} 12. h4 {[%clk 0:02:47]}  Nce5 {[%clk 0:01:59]} 13. h5 {[%clk 0:02:41]}  Nb6 {[%clk 0:01:52]} 14. O-O-O {[%clk 0:02:08]}  Bb7 {[%clk 0:01:46]} 15. Ndxb5 {[%clk 0:01:39]}  axb5 {[%clk 0:01:44]} 16. Bxb5+ {[%clk 0:01:40]}  Bc6 {[%clk 0:01:38]} 17. g6 {[%clk 0:01:35]}  Nbc4 {[%clk 0:01:32]} 18. Qd4 {[%clk 0:01:15]}  Bxb5 {[%clk 0:01:19]} 19. Nxb5 {[%clk 0:01:10]}  Qb7 {[%clk 0:01:20]} 20. h6 {[%clk 0:00:52]}  gxh6 {[%clk 0:00:55]} 21. gxf7+ {[%clk 0:00:50]}  Kxf7 {[%clk 0:00:55]} 22. f4 {[%clk 0:00:50]}  Qxb5 {[%clk 0:00:54]} 23. fxe5 {[%clk 0:00:49]}  dxe5 {[%clk 0:00:53]} 24. Qc3 {[%clk 0:00:40]}  Bxa3 {[%clk 0:00:20]} 25. Rhf1+ {[%clk 0:00:19]}  Ke8 {[%clk 0:00:20]} 26. bxa3 {[%clk 0:00:13]}  Rxa3 {[%clk 0:00:20]} 27. Bg5 {[%clk 0:00:03]}  hxg5 {[%clk 0:00:18]} 28. Qxc4 {[%clk 0:00:01]}  Qxc4 {[%clk 0:00:17]} 29. Kb2 {[%clk 0:00:02]}  Ra2+ {[%clk 0:00:17]} 30. Kb1 {[%clk 0:00:02]}  Qxc2# {[%clk 0:00:18]} 0-1


[Site "https://www.chess.com"]